Cogmind - Beta 10 X2 @@@ ROGUE MODE // 2020.08.29 @ 22:59:08 Player: Torako Result: Destroyed by H-66 Slayer with Heavy Assault Rifle Performance ------------- Evolutions (5) 2500 Regions Visited (17) 3400 Robots Destroyed (163) 815 Value Destroyed (6360) 6360 Prototype IDs (26) 520 Alien Tech Used (0) 0 Bonus (2783) 2783 TOTAL SCORE: 16378 Bonus ------- High Alert Combat Kills 183 Entered Garrisons 800 Used RIF Installer 1500 Aligned with FarCom 300 Cogmind --------- Core Integrity 0/1000 Matter 216/300 Energy 100/100 System Corruption 4% Temperature Cool (164) Movement Core (900) Ox17 Location -5/Garrison Parts ------- > --- POWER (1) -------- (None) > --- PROPULSION (3) --- (None) > --- UTILITY (10) ----- Large Storage Unit High-capacity Storage Unit Improved Salvage Targeting Computer Improved Salvage Targeting Computer Improved Armor Integrity Analyzer > --- WEAPON (3) ------- Gauss Rifle > --- INVENTORY (18) --- Armored Treads Flexi-carbon Leg Advanced Heat Sink Large Storage Unit Matter Compressor (197) Matter Compressor (0) Damper Plating Hacking Suite Hacking Suite Relay Coupler [NC] (31) Relay Coupler [Swarmer] (43) Relay Coupler [Sentry] (25) Skeleton Box Remote Datajack Remote Datajack Katana Peak State ------------ > --- POWER ------------ Light Nuclear Core > --- PROPULSION ------- Armored Medium Treads Heavy Treads > --- UTILITY ---------- Large Storage Unit Large Storage Unit High-capacity Storage Unit High-capacity Storage Unit High-capacity Storage Unit Improved Salvage Targeting Computer Improved Salvage Targeting Computer Improved Armor Integrity Analyzer Weapon Cycler Hacking Suite > --- WEAPON ----------- Minigun Flak Gun KE Penetrator > --- INVENTORY -------- Light Nuclear Core Light Angular Momentum Engine Antimatter Reactor Light Treads Improved Treads Armored Treads Armored Treads Heavy Treads Armored Huge Wheel Large Storage Unit Matter Compressor Matter Compressor Hardened Heavy Armor Plating Damper Plating Damper Plating Hacking Suite Hacking Suite Relay Coupler [NC] Relay Coupler [NC] Relay Coupler [NC] Relay Coupler [NC] Relay Coupler [NC] Relay Coupler [Swarmer] Relay Coupler [Sentry] Skeleton Box Heavy Particle Cannon Phase Cannon Gauss Rifle Mass Driver Shock Bomb Launcher Remote Datajack Remote Datajack Katana [Rating: 74] Favorites ----------- Power Light Nuclear Core Engine Improved Ion Engine Power Core Light Nuclear Core Reactor Antimatter Reactor Propulsion Light Treads Treads Light Treads Leg Aluminum Leg Wheel Wheel Utility High-capacity Storage Unit Device Advanced Terrain Scanner Storage High-capacity Storage Unit Processor Improved Salvage Targeting Computer Hackware Hacking Suite Protection Hardened Heavy Armor Plating Weapon Flak Gun Energy Gun EM Pulse Gun Energy Cannon Advanced Beam Cannon Ballistic Gun Flak Gun Ballistic Cannon Mass Driver Launcher Shock Bomb Launcher Special Weapon Remote Datajack Slashing Weapon Katana Build | -11 -10 -10 -9 -9 -9 -8 -8 -8 -8 -8 -7 -7 -7 -7 -6 -5 -5 ------- Run | Scr Mat Min Mat Min Exi Min Mat Gar Mat Gar Fac Was Fac Gar Fac Fac Gar Slots Evolved 10 | . . . 2 . . . 2 . . . 2 . . . 2 2 . Power . | . . . . . . . . . . . . . . . . . . Propulsion 1 | . . . 1 . . . . . . . . . . . . . . Utility 8 | . . . . . . . 2 . . . 2 . . . 2 2 . Weapon 1 | . . . 1 . . . . . . . . . . . . . . Parts Attached 141 | 1 11 1 20 2 2 1 22 3 6 4 4 2 5 13 5 27 12 Power 14 | . 1 . 3 . . . 2 . . 1 1 1 . 1 . 3 1 Engine 7 | . 1 . 3 . . . 1 . . 1 . . . . . 1 . Core 5 | . . . . . . . 1 . . . 1 . . 1 . 1 1 Reactor 2 | . . . . . . . . . . . . 1 . . . 1 . Propulsion 42 | . 4 . 8 2 . . 10 1 3 1 . 1 1 2 . 4 5 Treads 25 | . 1 . 3 . . . 6 1 3 1 . 1 . 2 . 2 5 Leg 8 | . 2 . 4 1 . . 1 . . . . . . . . . . Wheel 9 | . 1 . 1 1 . . 3 . . . . . 1 . . 2 . Hover . | . . . . . . . . . . . . . . . . . . Flight . | . . . . . . . . . . . . . . . . . . Utility 27 | . 3 . . . 2 . 6 . . . 2 . . 3 4 5 2 Device 5 | . 1 . . . . . 1 . . . 1 . . 1 . 1 . Storage 9 | . 2 . . . 2 . 4 . . . . . . 1 . . . Processor 5 | . . . . . . . 1 . . . 1 . . 1 2 . . Hackware 3 | . . . . . . . . . . . . . . . 1 2 . Protection 5 | . . . . . . . . . . . . . . . 1 2 2 Artifact . | . . . . . . . . . . . . . . . . . . Weapon 58 | 1 3 1 9 . . 1 4 2 3 2 1 . 4 7 1 15 4 Energy Gun 1 | . . 1 . . . . . . . . . . . . . . . Energy Cannon 6 | . . . 2 . . . . . . . . . . . . 2 2 Ballistic Gun 41 | 1 3 . 7 . . 1 3 2 3 2 . . 2 5 1 9 2 Ballistic Cannon 2 | . . . . . . . . . . . . . . . . 2 . Launcher 4 | . . . . . . . . . . . . . 1 2 . 1 . Special Weapon 1 | . . . . . . . . . . . . . . . . 1 . Impact Weapon . | . . . . . . . . . . . . . . . . . . Slashing Weapon 3 | . . . . . . . 1 . . . 1 . 1 . . . . Piercing Weapon . | . . . . . . . . . . . . . . . . . . Special Melee Weapon . | . . . . . . . . . . . . . . . . . . Unidentified Prototypes 3 | . . . 1 . . . . . 1 . . . 1 . . . . Parts Lost 63 | . . 2 5 1 . 1 2 3 6 4 . . . 8 2 13 16 Power 7 | . . . 1 . . . . . . 1 . . . 1 . 3 1 Propulsion 19 | . . . 2 1 . . 1 1 3 1 . . . 2 . 1 7 Utility 10 | . . . . . . . . . . . . . . 2 1 2 5 Weapon 27 | . . 2 2 . . 1 1 2 3 2 . . . 3 1 7 3 Highest Loss Streak 16 | . . 2 4 1 . 1 1 3 2 2 . . . 4 2 8 16 Average Slot Usage (%) 95 | . 93 88 96 99 100 100 99 99 99 99 99 95 92 91 90 90 84 Engine 3 | . 13 14 10 11 11 11 6 . . 3 5 . . . . . . Core 3 | . . . . . . . 1 9 9 5 1 5 . 5 6 2 5 Treads 17 | . 8 14 22 22 22 22 14 26 26 26 23 18 8 13 13 6 7 Wheel 4 | . 8 14 7 8 11 11 10 . . . . . 6 1 . 3 3 Device 1 | . 3 . . . . . 1 . . . 7 7 7 . . 2 . Storage 31 | . 18 28 22 22 22 22 34 36 36 36 30 30 30 36 33 29 28 Processor 4 | . . . . . . . . . . . 6 7 7 7 13 17 17 Ballistic Gun 23 | . 27 10 23 33 33 33 25 26 26 26 18 15 17 22 20 14 1 Naked Turns . | . . . . . . . . . . . . . . . . . . Heaviest Build 180 | 13 41 39 48 48 80 80 128 128 129 131 132 139 141 156 147 180 175 Greatest Support 97 | 20 20 10 60 40 10 10 60 62 62 62 60 90 90 90 90 97 69 Greatest Overweight (x) 11 | . 4 3 4 4 7 7 11 3 3 2 2 2 5 5 1 6 5 Average Overweight (x) 3 | . 1 3 3 3 4 7 6 2 2 1 2 1 3 1 1 3 4 Largest Inventory Capacity 40 | 6 16 16 16 16 20 20 34 34 34 34 34 34 34 40 40 40 40 Average Capacity 31 | 6 9 16 16 16 17 20 32 34 34 34 34 34 34 39 40 40 39 Most Carried 40 | 6 16 16 16 16 19 20 34 34 34 34 32 34 34 37 39 40 32 Average Carried 29 | 6 8 15 15 15 16 18 31 33 33 33 31 32 33 29 37 38 29 Final Capacity 40 | 6 16 16 16 16 20 20 34 34 34 34 34 34 34 40 40 40 18 Final Carried 38 | 6 16 16 16 15 19 20 34 34 34 33 32 34 34 37 38 32 18 Class Distribution -------------------- 51% | Hauler-Skirmisher 11% | Bothacker-Skirmisher 10% | Hauler-Assassin 9% | Gunner 6% | Mutant 3% | Bothacker-Gunner 3% | Hauler-Mutant Dominant Class ---------------- Mutant | -10/Materials Mutant | -10/Mines Gunner | -9/Materials Gunner | -9/Mines Gunner | -9/Exiles Hauler-Skirmisher | -8/Mines Hauler-Skirmisher | -8/Materials Hauler-Skirmisher | -8/Garrison Hauler-Skirmisher | -8/Materials Hauler-Skirmisher | -8/Garrison Hauler-Assassin | -7/Factory Hauler-Assassin | -7/Waste Hauler-Assassin | -7/Factory Hauler-Skirmisher | -7/Garrison Bothacker-Skirmisher | -6/Factory Bothacker-Gunner | -5/Factory Bothacker-Mutant | -5/Garrison Resources | -11 -10 -10 -9 -9 -9 -8 -8 -8 -8 -8 -7 -7 -7 -7 -6 -5 -5 ----------- Run | Scr Mat Min Mat Min Exi Min Mat Gar Mat Gar Fac Was Fac Gar Fac Fac Gar Matter Collected 5741 | 200 312 27 573 30 85 189 675 430 630 305 . 74 183 600 575 697 156 Remotely . | . . . . . . . . . . . . . . . . . . Salvage Created 7591 | . 336 44 921 46 . 83 782 330 1168 443 . 849 388 920 258 802 221 Parts 410 | . 16 4 58 3 . 6 53 12 74 26 . 7 19 43 26 51 12 Haulers Intercepted 1 | . . . 1 . . . . . . . . . . . . . . Recyclers Shooed 2 | . . . . . . . . . . . . . 1 . . 1 . Parts Field Recycled . | . . . . . . . . . . . . . . . . . . Retrieved Matter . | . . . . . . . . . . . . . . . . . . Parts Self-Destructed . | . . . . . . . . . . . . . . . . . . Prevented . | . . . . . . . . . . . . . . . . . . Kills | -11 -10 -10 -9 -9 -9 -8 -8 -8 -8 -8 -7 -7 -7 -7 -6 -5 -5 ------- Run | Scr Mat Min Mat Min Exi Min Mat Gar Mat Gar Fac Was Fac Gar Fac Fac Gar Combat Hostiles Destroyed 144 | . 6 3 22 3 . 3 16 6 23 13 . . 6 23 5 11 4 Guns 122 | . 6 3 16 3 . 3 16 6 23 13 . . 6 14 3 8 2 Cannons 9 | . . . 6 . . . . . . . . . . . . 1 2 AOE 12 | . . . . . . . . . . . . . . 8 2 2 . Classes Destroyed 15 | . 3 1 4 . . 1 1 . . . . . 2 2 . 1 . Worker 2 | . . . . . . . 1 . . . . . . . . 1 . Builder 5 | . 1 . 1 . . . . . . . . . . . . 3 . Tunneler 1 | . . . . . . . . . . . . . . . . 1 . Hauler 1 | . . . 1 . . . . . . . . . . . . . . Recycler 2 | . . . . . . . . . . . . . 1 . . 1 . Operator 2 | . . . 1 . . . . . 1 . . . . . . . . Watcher 6 | . 2 . . . . . 2 . 2 . . . . . . . . Swarmer 40 | . . 3 3 3 . 2 4 . 3 6 . . . 12 . 4 . Grunt 62 | . 6 . 17 . . . 5 5 9 4 . . 3 7 2 2 2 Brawler 2 | . . . . . . . . . . . . . . 1 . 1 . Duelist 5 | . . . 1 . . . . . 2 1 . . . 1 . . . Sentry 23 | . . . 1 . . . 7 . 9 1 . . 1 . 1 3 . Demolisher 1 | . . . . . . . . . . . . . . 1 . . . Hunter 6 | . . . . . . 1 . 1 . 1 . . . 1 . . 2 Programmer 5 | . . . . . . . . . . . . . 2 . 2 1 . Best Kill Streak 8 | . 3 3 8 2 . 2 5 2 5 5 . . 5 7 2 8 3 Combat Bots Only 7 | . 2 3 7 2 . 2 4 2 5 5 . . 4 7 2 4 3 Max Kills in Single Turn 4 | . 2 1 2 1 . 1 2 1 2 2 . . 2 2 2 4 1 Gunslinging 1 | . . . 1 . . . 1 . . 1 . . . . . . . Exploded 2 | . . . . . . . . . . . . . . 2 2 2 . Melee . | . . . . . . . . . . . . . . . . . . Uniques/NPCs Destroyed . | . . . . . . . . . . . . . . . . . . Combat | -11 -10 -10 -9 -9 -9 -8 -8 -8 -8 -8 -7 -7 -7 -7 -6 -5 -5 -------- Run | Scr Mat Min Mat Min Exi Min Mat Gar Mat Gar Fac Was Fac Gar Fac Fac Gar Damage Taken 12257 | . 314 161 873 79 . 234 566 588 753 391 . . 320 1574 267 3319 2818 Core 1533 | . 62 25 116 27 . 36 52 19 30 35 . . 49 60 15 584 423 Absorbed by Shields 20 | . . . . . . . . . . 20 . . . . . . . Reduced by Siege Mode 72 | . . . . . . . . . . . . . . . . . 72 Core Remaining (%) 79 | 100 . 65 . . . 55 . . . 75 . . . 84 98 . . Volleys Fired 390 | . 32 5 64 5 . 12 43 27 44 20 . . 12 45 10 50 21 Largest 3 | . 2 2 3 3 . 3 3 3 3 3 . . 3 3 3 3 3 Hottest 198 | . 40 60 176 69 . 69 71 79 84 84 . . 84 84 81 198 108 Shots Fired 991 | . 64 10 142 15 . 35 128 75 131 59 . . 36 107 30 132 27 Gun 919 | . 64 10 119 15 . 35 128 75 131 59 . . 36 94 30 111 12 Cannon 57 | . . . 23 . . . . . . . . . . . . 19 15 Launcher 15 | . . . . . . . . . . . . . . 13 . 2 . Special . | . . . . . . . . . . . . . . . . . . Kinetic 912 | . 64 9 102 15 . 35 128 75 131 59 . . 36 94 30 119 15 Thermal 46 | . . . 23 . . . . . . . . . . . . 11 12 Explosive . | . . . . . . . . . . . . . . . . . . Electromagnetic 33 | . . 1 17 . . . . . . . . . . 13 . 2 . Robot Hit Streak 23 | . 6 8 12 3 . 19 13 17 23 15 . . 8 13 13 12 20 Robot Miss Streak 8 | . 3 1 5 4 . 1 6 8 7 5 . . 5 7 5 8 3 Penetration Max 1 | . . . . . . . . . . . . . . . . 1 1 Secondary Targets 21 | . 1 3 3 . . . 3 1 4 3 . . 2 1 . . . Max Gunslinging Chain 1 | . 1 1 1 . . . 1 1 1 1 . . 1 1 . . . Shots Hit Robots 707 | . 39 9 85 7 . 27 76 56 106 57 . 26 30 63 21 84 21 Core Hits 440 | . 15 4 37 3 . 7 33 28 95 52 . 3 30 55 11 57 10 Critical Hits 9 | . 1 1 1 1 . . 2 . . . . 1 . 1 . 1 . Critical Kills 4 | . 1 . 1 . . . 1 . . . . . . 1 . . . Critical Parts Destroyed 4 | . . 1 . 1 . . 1 . . . . . . . . 1 . Melee Attacks 52 | . . . . . . . 2 . . . 2 26 22 . . . . Impact . | . . . . . . . . . . . . . . . . . . Slashing 52 | . . . . . . . 2 . . . 2 26 22 . . . . Piercing . | . . . . . . . . . . . . . . . . . . Sneak Attacks . | . . . . . . . . . . . . . . . . . . Combat Hostiles . | . . . . . . . . . . . . . . . . . . Follow-up Attacks . | . . . . . . . . . . . . . . . . . . Damage Inflicted 14627 | . 518 139 1281 112 . 287 1218 790 1673 816 . 1219 559 1734 809 2764 708 Guns 10240 | . 518 139 1011 112 . 287 1218 790 1673 816 . . 559 970 396 1520 231 Cannons 967 | . . . 270 . . . . . . . . . . . . 232 465 Explosions 2189 | . . . . . . . . . . . . . . 764 413 1012 . Melee 1219 | . . . . . . . . . . . . 1219 . . . . . Ramming 12 | . . . . . . . . . . . . . . . . . 12 Kinetic 10177 | . 518 124 801 112 . 287 1218 790 1673 816 . . 559 970 396 1596 317 Thermal 2061 | . . . 270 . . . . . . . . . . 36 413 963 379 Explosive . | . . . . . . . . . . . . . . . . . . Electromagnetic 1158 | . . 15 210 . . . . . . . . . . 728 . 205 . Impact . | . . . . . . . . . . . . . . . . . . Slashing 1219 | . . . . . . . . . . . . 1219 . . . . . Piercing . | . . . . . . . . . . . . . . . . . . Highest Corruption 6 | . . . . . . . . . . . . . 1 5 6 4 4 Average Corruption 3 | . . . . . . . . . . . . . 1 4 2 3 4 Corruption Purged . | . . . . . . . . . . . . . . . . . . Effects 52 | . . . . . . . . . . . . . . 35 8 2 7 Message Errors 12 | . . . . . . . . . . . . . . 6 5 . 1 Matter Fused 9 | . . . . . . . . . . . . . . 4 1 1 3 Heat Flow Errors 6 | . . . . . . . . . . . . . . 6 . . . Energy Discharges 4 | . . . . . . . . . . . . . . 3 1 . . Data Loss (minor) 8 | . . . . . . . . . . . . . . 6 1 . 1 Data Loss (major) 2 | . . . . . . . . . . . . . . 2 . . . Misfires 1 | . . . . . . . . . . . . . . 1 . . . Targeting Errors 6 | . . . . . . . . . . . . . . 4 . . 2 Weapon Failures 4 | . . . . . . . . . . . . . . 3 . 1 . Overload Shots . | . . . . . . . . . . . . . . . . . . Overflow Damage 399 | . . . 6 . . . . . . . . . . 4 158 207 24 Projectiles 30 | . . . 6 . . . . . . . . . . . . . 24 Explosions 369 | . . . . . . . . . . . . . . 4 158 207 . Melee . | . . . . . . . . . . . . . . . . . . Knockbacks 1 | . . . . . . . . . . . . . . . . . 1 Impact 1 | . . . . . . . . . . . . . . . . . 1 Kinetic . | . . . . . . . . . . . . . . . . . . Secondary . | . . . . . . . . . . . . . . . . . . Self-Inflicted Damage 452 | . . . . . . . . . . . . . . 127 162 163 . Shots 11 | . . . . . . . . . . . . . . 5 2 4 . Rammed 1 | . . . . . . . . . . . . . . . . . 1 Targets Rammed 1 | . . . . . . . . . . . . . . . . . 1 Kicked . | . . . . . . . . . . . . . . . . . . Crushed . | . . . . . . . . . . . . . . . . . . Highest Temperature 596 | . 8 12 324 50 . 54 223 120 84 54 . . 157 248 21 596 395 Average Temperature 78 | . 2 4 111 18 . 26 59 43 26 16 . . 70 52 14 126 211 Received Heat Transfer 3246 | . 174 54 324 . . . 153 270 342 147 . . 126 297 6 648 705 Effects 16 | . . . 2 . . . . . . . . . . . . 9 5 Shutdowns 2 | . . . . . . . . . . . . . . . . 1 1 Energy Bleed 3 | . . . 1 . . . . . . . . . . . . 1 1 Interference 4 | . . . . . . . . . . . . . . . . 1 3 Matter Decay 1 | . . . . . . . . . . . . . . . . 1 . Damage (minor) 2 | . . . 1 . . . . . . . . . . . . 1 . Damage (major) 3 | . . . . . . . . . . . . . . . . 3 . Damage (core) 1 | . . . . . . . . . . . . . . . . 1 . Siege Activations 1 | . . . . . . . . . . . . . . . . . 1 Total Turns 22 | . . . . . . . . . . . . . . . . . 22 Longest Duration 22 | . . . . . . . . . . . . . . . . . 22 Robots Corrupted 1 | . . . . . . . . . . . . . . 1 . . . Combat Hostiles 1 | . . . . . . . . . . . . . . 1 . . . Parts Fried 4 | . . . . . . . . . . . . . . 4 . . . Impact Corruptions . | . . . . . . . . . . . . . . . . . . Robots Melted . | . . . . . . . . . . . . . . . . . . Combat Hostiles . | . . . . . . . . . . . . . . . . . . Parts Melted 2 | . . . . . . . . . . . . . . . . 1 1 Heat Transferred 1706 | . . . 444 . . . . . . . . . . 100 300 612 250 Parts Sabotaged . | . . . . . . . . . . . . . . . . . . Parts Stolen . | . . . . . . . . . . . . . . . . . . Parts Stripped . | . . . . . . . . . . . . . . . . . . Power Chain Reactions 4 | . . . . . . . . . . . . . . 4 . . . Missiles Intercepted . | . . . . . . . . . . . . . . . . . . Alert | -11 -10 -10 -9 -9 -9 -8 -8 -8 -8 -8 -7 -7 -7 -7 -6 -5 -5 ------- Run | Scr Mat Min Mat Min Exi Min Mat Gar Mat Gar Fac Was Fac Gar Fac Fac Gar Peak Influence 597 | . 187 80 453 236 . 70 227 257 283 437 237 82 190 597 418 499 347 Average Influence 199 | . 85 55 255 198 . 38 124 146 160 319 232 75 30 387 319 257 317 Maximum Alert Level 2 | . . . 2 1 . . 1 1 1 2 1 . . 2 2 2 1 Low Security (%) 54 | 100 100 100 32 54 . 100 74 66 67 21 . 100 100 13 . 52 . Level 1 30 | . . . 51 46 . . 25 33 32 42 100 . . 18 98 7 100 Level 2 14 | . . . 16 . . . . . . 36 . . . 67 2 40 . Level 3 . | . . . . . . . . . . . . . . . . . . Level 4 . | . . . . . . . . . . . . . . . . . . Level 5 . | . . . . . . . . . . . . . . . . . . High Security . | . . . . . . . . . . . . . . . . . . Max Security . | . . . . . . . . . . . . . . . . . . Squads Dispatched 17 | . 1 . 5 . . . 2 . 3 . . . 1 . 1 4 . Investigation 1 | . . . 1 . . . . . . . . . . . . . . Extermination 3 | . . . . . . . . . . . . . 1 . 1 1 . Reinforcement 9 | . 1 . 4 . . . 1 . 2 . . . . . . 1 . Assault 1 | . . . . . . . . . . . . . . . . 1 . Garrison 3 | . . . . . . . 1 . 1 . . . . . . 1 . Intercept . | . . . . . . . . . . . . . . . . . . Construction Impeded 1 | . . . . . . . . . . . . . . . . 1 . Haulers Reinforced . | . . . . . . . . . . . . . . . . . . Stealth | -11 -10 -10 -9 -9 -9 -8 -8 -8 -8 -8 -7 -7 -7 -7 -6 -5 -5 --------- Run | Scr Mat Min Mat Min Exi Min Mat Gar Mat Gar Fac Was Fac Gar Fac Fac Gar Distress Signals 14 | . 1 . 1 . . . 4 . 2 . . . 1 . 3 2 . Communications Jammed . | . . . . . . . . . . . . . . . . . . Distress Signals . | . . . . . . . . . . . . . . . . . . Times Spotted 241 | . 12 5 37 5 . 4 27 7 31 13 . 1 10 28 11 30 20 Peak Tracking Total 14 | . 3 4 7 4 . 3 5 3 7 5 . 1 3 7 4 11 14 Tactical Retreats 27 | . . . 5 2 . 1 1 . . . . . 1 6 3 6 2 Traps | -11 -10 -10 -9 -9 -9 -8 -8 -8 -8 -8 -7 -7 -7 -7 -6 -5 -5 ------- Run | Scr Mat Min Mat Min Exi Min Mat Gar Mat Gar Fac Was Fac Gar Fac Fac Gar Traps Triggered 29 | . 2 . . . . . 2 5 . 4 1 . . 11 1 3 . Indirectly . | . . . . . . . . . . . . . . . . . . Trap Hack Attempts . | . . . . . . . . . . . . . . . . . . Triggered . | . . . . . . . . . . . . . . . . . . Disarmed . | . . . . . . . . . . . . . . . . . . Reprogrammed . | . . . . . . . . . . . . . . . . . . Reused . | . . . . . . . . . . . . . . . . . . Traps Extracted . | . . . . . . . . . . . . . . . . . . Installed . | . . . . . . . . . . . . . . . . . . Triggered 1 | . . . . . . . . . . . . . . 1 . . . Machines | -11 -10 -10 -9 -9 -9 -8 -8 -8 -8 -8 -7 -7 -7 -7 -6 -5 -5 ---------- Run | Scr Mat Min Mat Min Exi Min Mat Gar Mat Gar Fac Was Fac Gar Fac Fac Gar Machines Disabled 22 | . . . 1 . . . 1 . . . . . . 2 5 13 . Max in Single Turn 10 | . . . 1 . . . 1 . . . . . . 1 5 10 . Garrison Relay 2 | . . . . . . . . . . . . . . 2 . . . Machines Sabotaged . | . . . . . . . . . . . . . . . . . . Garrisons Compromised . | . . . . . . . . . . . . . . . . . . Overloaded Fab Kills . | . . . . . . . . . . . . . . . . . . Fab Network Shutdowns . | . . . . . . . . . . . . . . . . . . Hacking | -11 -10 -10 -9 -9 -9 -8 -8 -8 -8 -8 -7 -7 -7 -7 -6 -5 -5 --------- Run | Scr Mat Min Mat Min Exi Min Mat Gar Mat Gar Fac Was Fac Gar Fac Fac Gar Machines Accessed 29 | . 3 . 3 . 1 . 9 . 6 . 1 . 3 . . 3 . Terminals 24 | . 3 . 3 . . . 8 . 5 . 1 . 2 . . 2 . Fabricators . | . . . . . . . . . . . . . . . . . . Repair Stations . | . . . . . . . . . . . . . . . . . . Recycling Units . | . . . . . . . . . . . . . . . . . . Scanalyzers . | . . . . . . . . . . . . . . . . . . Garrison Access 4 | . . . . . . . 1 . 1 . . . 1 . . 1 . Total Hacks 65 | . 7 . 4 . 1 . 25 . 14 . 6 . 4 . . 4 . Successful 32 | . 5 . 1 . 1 . 10 . 8 . 2 . 2 . . 3 . Failed 33 | . 2 . 3 . . . 15 . 6 . 4 . 2 . . 1 . Catastrophic 10 | . . . . . . . 7 . 2 . 1 . . . . . . Database Lockouts . | . . . . . . . . . . . . . . . . . . Manual 56 | . 7 . 2 . 1 . 24 . 13 . 6 . 2 . . 1 . Terminals 60 | . 7 . 4 . . . 24 . 13 . 6 . 3 . . 3 . Fabricators . | . . . . . . . . . . . . . . . . . . Repair Stations . | . . . . . . . . . . . . . . . . . . Recycling Units . | . . . . . . . . . . . . . . . . . . Scanalyzers . | . . . . . . . . . . . . . . . . . . Garrison Access 4 | . . . . . . . 1 . 1 . . . 1 . . 1 . Terminal Hacks 13 | . 3 . 1 . 1 . 3 . 1 . 1 . 1 . . 2 . Robot Analysis 3 | . 2 . . . . . . . . . 1 . . . . . . Branch Access Points 3 | . . . 1 . . . . . . . . . 1 . . 1 . Terminal Index 2 | . 1 . . . . . 1 . . . . . . . . . . Garrison Index 2 | . . . . . . . 1 . 1 . . . . . . . . Alert Level 1 | . . . . . . . . . . . . . . . . 1 . Unreport Threat 1 | . . . . . . . 1 . . . . . . . . . . EX-Prototype ID Bank 1 | . . . . . 1 . . . . . . . . . . . . Fabricator Hacks . | . . . . . . . . . . . . . . . . . . Repair Station Hacks . | . . . . . . . . . . . . . . . . . . Recycling Unit Hacks . | . . . . . . . . . . . . . . . . . . Scanalyzer . | . . . . . . . . . . . . . . . . . . Garrison Access Hacks 4 | . . . . . . . 1 . 1 . . . 1 . . 1 . Unlock Access 4 | . . . . . . . 1 . 1 . . . 1 . . 1 . Unauthorized Hacks 14 | . 2 . . . . . 5 . 6 . 1 . . . . . . Terminals 14 | . 2 . . . . . 5 . 6 . 1 . . . . . . Track 1 | . . . . . . . . . 1 . . . . . . . . Botnet 13 | . 2 . . . . . 5 . 5 . 1 . . . . . . Fabricators . | . . . . . . . . . . . . . . . . . . Repair Stations . | . . . . . . . . . . . . . . . . . . Recycling Units . | . . . . . . . . . . . . . . . . . . Scanalyzers . | . . . . . . . . . . . . . . . . . . Garrison Access . | . . . . . . . . . . . . . . . . . . Data Cores Recovered . | . . . . . . . . . . . . . . . . . . Used . | . . . . . . . . . . . . . . . . . . Hacking Detections 23 | . 3 . 2 . . . 8 . 5 . 1 . 1 . . 3 . Full Trace Events 1 | . . . 1 . . . . . . . . . . . . . . Feedback Events . | . . . . . . . . . . . . . . . . . . Feedback Blocked . | . . . . . . . . . . . . . . . . . . Robot Schematics Acquired . | . . . . . . . . . . . . . . . . . . Robots Built . | . . . . . . . . . . . . . . . . . . Matter . | . . . . . . . . . . . . . . . . . . Time . | . . . . . . . . . . . . . . . . . . Total Robot Build Rating . | . . . . . . . . . . . . . . . . . . Part Schematics Acquired . | . . . . . . . . . . . . . . . . . . Parts Built . | . . . . . . . . . . . . . . . . . . Matter . | . . . . . . . . . . . . . . . . . . Time . | . . . . . . . . . . . . . . . . . . Total Part Build Rating . | . . . . . . . . . . . . . . . . . . Parts Repaired . | . . . . . . . . . . . . . . . . . . Time . | . . . . . . . . . . . . . . . . . . Parts Recycled . | . . . . . . . . . . . . . . . . . . Recycled Matter . | . . . . . . . . . . . . . . . . . . Retrieved Matter . | . . . . . . . . . . . . . . . . . . Retrieved Components . | . . . . . . . . . . . . . . . . . . Parts Scanalyzed . | . . . . . . . . . . . . . . . . . . Part Schematics Acquired . | . . . . . . . . . . . . . . . . . . Parts Damaged . | . . . . . . . . . . . . . . . . . . Bothacking | -11 -10 -10 -9 -9 -9 -8 -8 -8 -8 -8 -7 -7 -7 -7 -6 -5 -5 ------------ Run | Scr Mat Min Mat Min Exi Min Mat Gar Mat Gar Fac Was Fac Gar Fac Fac Gar Used RIF Installer 3 | . . . . . . . . 1 . 1 . . . 1 . . . Hotswap 1 | . . . . . . . . . . . . . . 1 . . . Robot Detection 1 | . . . . . . . . . . 1 . . . . . . . Robots Hacked . | . . . . . . . . . . . . . . . . . . Non-combat . | . . . . . . . . . . . . . . . . . . Combat . | . . . . . . . . . . . . . . . . . . Robot Hacks Applied . | . . . . . . . . . . . . . . . . . . Relay Couplers Released 8 | . . . . . . . . . . . . . . 8 . . . Machine Destruction 8 | . . . . . . . . . . . . . . 8 . . . Robots Rewired . | . . . . . . . . . . . . . . . . . . Allies Hacked . | . . . . . . . . . . . . . . . . . . Hacks Repelled . | . . . . . . . . . . . . . . . . . . Allies | -11 -10 -10 -9 -9 -9 -8 -8 -8 -8 -8 -7 -7 -7 -7 -6 -5 -5 -------- Run | Scr Mat Min Mat Min Exi Min Mat Gar Mat Gar Fac Was Fac Gar Fac Fac Gar Total Allies . | . . . . . . . . . . . . . . . . . . Largest Group . | . . . . . . . . . . . . . . . . . . Highest-Rated Group . | . . . . . . . . . . . . . . . . . . Highest-Rated Ally . | . . . . . . . . . . . . . . . . . . Total Orders . | . . . . . . . . . . . . . . . . . . Ally Attacks . | . . . . . . . . . . . . . . . . . . Total Damage . | . . . . . . . . . . . . . . . . . . Kills . | . . . . . . . . . . . . . . . . . . Allies Corrupted . | . . . . . . . . . . . . . . . . . . Allies Melted . | . . . . . . . . . . . . . . . . . . Intel | -11 -10 -10 -9 -9 -9 -8 -8 -8 -8 -8 -7 -7 -7 -7 -6 -5 -5 ------- Run | Scr Mat Min Mat Min Exi Min Mat Gar Mat Gar Fac Was Fac Gar Fac Fac Gar Robot Analysis Total 3 | . 2 . . . . . . . . . 1 . . . . . . Derelict Logs Recovered . | . . . . . . . . . . . . . . . . . . Drone Launches . | . . . . . . . . . . . . . . . . . . Drone Recoveries . | . . . . . . . . . . . . . . . . . . Exploration | -11 -10 -10 -9 -9 -9 -8 -8 -8 -8 -8 -7 -7 -7 -7 -6 -5 -5 ------------- Run | Scr Mat Min Mat Min Exi Min Mat Gar Mat Gar Fac Was Fac Gar Fac Fac Gar Turns Passed 12174 | 2 496 33 764 150 755 423 1590 545 1709 691 233 433 992 1344 850 963 201 Spaces Moved 6007 | 1 320 15 397 103 587 240 794 230 711 259 108 185 531 606 422 436 62 Core . | . . . . . . . . . . . . . . . . . . Treads 2976 | . . . 55 17 . . 175 230 711 259 108 185 65 539 422 186 24 Legs 93 | 1 92 . . . . . . . . . . . . . . . . Wheels 2938 | . 228 15 342 86 587 240 619 . . . . . 466 67 . 250 38 Hover . | . . . . . . . . . . . . . . . . . . Flight . | . . . . . . . . . . . . . . . . . . Fastest Speed 80 | 120 80 110 110 120 120 150 140 195 195 178 203 185 140 150 185 140 150 Average Speed 164 | 120 110 110 126 129 126 150 163 198 198 198 203 192 147 181 185 173 193 Slowest Speed 290 | 120 120 110 200 180 150 150 250 220 217 203 203 203 185 185 185 290 270 Overloaded Moves . | . . . . . . . . . . . . . . . . . . Propulsion Burnouts . | . . . . . . . . . . . . . . . . . . Robots Hopped . | . . . . . . . . . . . . . . . . . . Cave-ins Triggered . | . . . . . . . . . . . . . . . . . . Exploration Rate (%) 41 | 1 44 6 45 37 90 63 66 45 65 52 3 80 17 73 13 13 28 Regions Visited 17 Branch Regions 4 Pre-discovered Areas . | . . . . . . . . . . . . . . . . . . Known Exits Taken 5 | . . . 1 . . . 1 . 1 . . . 1 . . 1 . Unknown Exits Taken 7 | 1 1 1 . 1 1 1 . . . . . . . . 1 . . Scrap Searched . | . . . . . . . . . . . . . . . . . . Spaces Dug 30 | . . . . . . . 2 . . . 2 . 21 5 . . . Terrain Destroyed 179 | . . . . . . . 2 . . . 2 . 22 10 67 73 3 Melee 25 | . . . . . . . 2 . . . 2 . 21 . . . . Projectile 20 | . . . . . . . . . . . . . 1 2 . 14 3 AOE 134 | . . . . . . . . . . . . . . 8 67 59 . Actions | -11 -10 -10 -9 -9 -9 -8 -8 -8 -8 -8 -7 -7 -7 -7 -6 -5 -5 --------- Run | Scr Mat Min Mat Min Exi Min Mat Gar Mat Gar Fac Was Fac Gar Fac Fac Gar Total 7531 | 1 397 21 562 110 602 284 1028 272 921 391 120 227 683 770 472 555 115 Wait 679 | . 20 . 45 1 . 28 122 . 123 101 3 . 101 74 27 20 14 Move 5994 | . 319 14 396 102 586 239 794 229 711 258 108 184 530 605 421 436 62 Hop . | . . . . . . . . . . . . . . . . . . Pick Up 133 | . 10 1 16 . 8 3 26 3 19 3 1 5 4 13 6 11 4 Fast Attach 40 | . 6 . 10 . . . 6 . 3 . 1 2 2 . 2 8 . Attach 63 | . . 1 5 1 . 1 4 3 4 4 2 . 1 8 3 15 11 Detach 12 | . 1 . 2 . . . 2 . . . 1 1 1 . 1 2 1 Swap 39 | 1 5 . 5 1 2 . 12 . . . 1 . 2 5 . 4 1 Drop 93 | . 4 . 19 . 6 1 17 . 17 . 1 9 8 . 2 9 . Fire 390 | . 32 5 64 5 . 12 43 27 44 20 . . 12 45 10 50 21 Melee 52 | . . . . . . . 2 . . . 2 26 22 . . . . Ram . | . . . . . . . . . . . . . . . . . . Kick . | . . . . . . . . . . . . . . . . . . Crush 1 | . . . . . . . . . . . . . . . . . 1 Escape Stasis 35 | . . . . . . . . 10 . 5 . . . 20 . . . Rewire . | . . . . . . . . . . . . . . . . . . Trap . | . . . . . . . . . . . . . . . . . . Miscellaneous . | . . . . . . . . . . . . . . . . . . Route ------- -11/Scrapyard -10/Materials -10/Mines -9/Materials (discovered 3 exits: *Mat / *Min x2) -9/Mines -9/Exiles -8/Mines -8/Materials (discovered 5 exits: *Fac x2 / [*Sto x2] / Gar) -8/Garrison (discovered 2 exits: *Mat x2) -8/Materials (discovered 5 exits: *Fac x2 / [*Sto x2] / Gar) -8/Garrison (discovered 3 exits: *Fac x3) -7/Factory -7/Waste -7/Factory (discovered 3 exits: *Low x2 / Gar) -7/Garrison (discovered 3 exits: [*Fac x3]) -6/Factory -5/Factory (discovered 5 exits: Upp x2 / Ext x2 / Gar) -5/Garrison History --------- Turn | Location | Event 3 | -11/Scrapyard | Discovered new exit (range 0) 3 | -11/Scrapyard | Entered Materials 342 | -10/Materials | Build established: Mutant 488 | -10/Materials | Discovered new exit (range 9) 499 | -10/Materials | Entered Mines 525 | -10/Mines | Discovered new exit (range 7) 532 | -10/Mines | Entered Materials 532 | -9/Materials | Evolved 2 slots: Propulsion x1, Weapon x1 781 | -9/Materials | Lost 4 parts (1p2n1w) 905 | -9/Materials | Discovered new exit (range 10) 971 | -9/Materials | Destroyed 7 combat bots 1145 | -9/Materials | Build established: Gunner 1254 | -9/Materials | Identified exit to Mines 1296 | -9/Materials | Entered Mines 1440 | -9/Mines | Deemed a non-threat by the Exiles lab entrance 1441 | -9/Mines | Discovered new exit (range 5) 1446 | -9/Mines | Entered Exiles 1475 | -9/Exiles | Met 8R-AWN 1533 | -9/Exiles | Met EX-HEX 1654 | -9/Exiles | Met EX-BIN 1668 | -9/Exiles | Aligned with FarCom system 1669 | -9/Exiles | Given EX-Vault access code 1700 | -9/Exiles | Opened EX-Vault 1710 | -9/Exiles | Found Skeleton Box 1736 | -9/Exiles | Warned to stay clear of 0b10 Research branches 1771 | -9/Exiles | Met EX-DEC 1852 | -9/Exiles | Visited The Gauntlet 2184 | -9/Exiles | Discovered new exit (range 14) 2201 | -9/Exiles | Left Exiles lab with Skeleton Box 2201 | -9/Exiles | Entered Mines 2497 | -8/Mines | Build established: Hauler-Skirmisher 2617 | -8/Mines | Discovered new exit (range 6) 2624 | -8/Mines | Entered Materials 2624 | -8/Materials | Evolved 2 slots: Utility x2 2624 | -8/Materials | Discovered new exit (range 8) 3068 | -8/Materials | Discovered new exit (range 6) 3194 | -8/Materials | Discovered new exit (range 3) 3661 | -8/Materials | Discovered new exit (range 5) 4158 | -8/Materials | Garrison activated, responded to threat 4214 | -8/Materials | Identified exit to Garrison 4214 | -8/Materials | Entered Garrison 4308 | -8/Garrison | Triggered checkpoint 4408 | -8/Garrison | Discovered new exit (range 14) 4534 | -8/Garrison | Triggered checkpoint 4591 | -8/Garrison | Lost 3 parts (1n2w) 4600 | -8/Garrison | Triggered checkpoint 4722 | -8/Garrison | Discovered new exit (range 10) 4751 | -8/Garrison | Installed Relay Interface Framework 4759 | -8/Garrison | Entered Materials 4896 | -8/Materials | Discovered new exit (range 4) 5649 | -8/Materials | Discovered new exit (range 16) 5906 | -8/Materials | Discovered new exit (range 16) 6048 | -8/Materials | Discovered new exit (range 9) 6416 | -8/Materials | Garrison activated, responded to threat 6468 | -8/Materials | Identified exit to Garrison 6468 | -8/Materials | Entered Garrison 6577 | -8/Garrison | Spotted B-75 Beast 6577 | -8/Garrison | Spotted B-75 Beast 6642 | -8/Garrison | Triggered checkpoint 6732 | -8/Garrison | Triggered checkpoint 6767 | -8/Garrison | Discovered new exit (range 9) 6854 | -8/Garrison | Triggered checkpoint 6953 | -8/Garrison | Discovered new exit (range 9) 7032 | -8/Garrison | Triggered checkpoint 7113 | -8/Garrison | Discovered new exit (range 12) 7151 | -8/Garrison | Expanded RIF knowledge: Robot Detection 7159 | -8/Garrison | Entered Factory 7159 | -7/Factory | Evolved 2 slots: Utility x2 7392 | -7/Factory | Sucked down chute 7392 | -7/Factory | Entered Waste 7392 | -7/Waste | The area was eerily silent 7543 | -7/Waste | Build established: Hauler-Assassin 7583 | -7/Waste | Found Damper Plating 7771 | -7/Waste | Found Damper Plating 7790 | -7/Waste | A Compactor rumbled back to life 7790 | -7/Waste | Spotted C-40 Crusher 7797 | -7/Waste | Discovered new exit (range 16) 7825 | -7/Waste | Entered Factory 7854 | -7/Factory | Discovered new exit (range 13) 7858 | -7/Factory | Identified exit to Lower Caves 7899 | -7/Factory | Found Prototype Launcher 7899 | -7/Factory | Identified Rocket Array 8812 | -7/Factory | Identified exit to Garrison 8817 | -7/Factory | Entered Garrison 8850 | -7/Garrison | Build established: Hauler-Skirmisher 8974 | -7/Garrison | Triggered checkpoint 9030 | -7/Garrison | Destroyed 7 combat bots 9032 | -7/Garrison | Lost 4 parts (1n2u1w) 9046 | -7/Garrison | Triggered checkpoint 9088 | -7/Garrison | Lost 4 parts (1p1n2w) 9232 | -7/Garrison | Triggered checkpoint 9256 | -7/Garrison | Discovered new exit (range 15) 9446 | -7/Garrison | Discovered new exit (range 10) 9548 | -7/Garrison | Triggered checkpoint 9562 | -7/Garrison | Triggered checkpoint 9612 | -7/Garrison | Discovered new exit (range 14) 9647 | -7/Garrison | Expanded RIF knowledge: Hotswap 9706 | -7/Garrison | Triggered checkpoint 9755 | -7/Garrison | Garrison Relay disabled 10070 | -7/Garrison | Triggered checkpoint 10071 | -7/Garrison | Garrison Relay disabled 10161 | -7/Garrison | Entered Factory 10161 | -6/Factory | Evolved 2 slots: Utility x2 10373 | -6/Factory | Build established: Bothacker-Skirmisher 10888 | -6/Factory | Discovered new exit (range 16) 11011 | -6/Factory | Entered another Factory area 11011 | -5/Factory | Evolved 2 slots: Utility x2 11597 | -5/Factory | Build established: Bothacker-Gunner 11830 | -5/Factory | Identified exit to Upper Caves 11830 | -5/Factory | Identified exit to Extension 11885 | -5/Factory | Garrison activated, responded to threat 11911 | -5/Factory | First assault squad dispatched 11938 | -5/Factory | Core integrity fell below 50% 11974 | -5/Factory | Identified exit to Garrison 11974 | -5/Factory | Entered Garrison 11977 | -5/Garrison | Lost 8 parts (1p1n1u5w) 12118 | -5/Garrison | Triggered checkpoint 12153 | -5/Garrison | Core integrity fell below 20% 12163 | -5/Garrison | Triggered checkpoint 12175 | -5/Garrison | Destroyed by H-66 Slayer with Heavy Assault Rifle Last Messages --------------- Penetrated by Slug. Critical hit. Slug penetrates Reinforced Barrier. Slug penetrates Wall. Penetrated by Slug. Neutron Cannon destroyed. Slammed into H-66 Slayer. H-66 Slayer knocked back. System corrupted: Component data lost. Garrison Door opened remotely. Slug penetrates Wall. Damper Plating destroyed. Imp. Treads destroyed. Hcp. Storage Unit destroyed. Penetrated by Slug. Lgt. Nuclear Core destroyed. Garrison Door opened remotely. Imp. Treads destroyed. Penetrated by Slug. Hcp. Storage Unit destroyed. Map ----- +----------------------------------------------------+ | ?????????????????????????????????????????????????? | | ?????????????????????????????????????????????????? | | ?????????????????????????????????????????????????? | | ??????????????????????????????????????????????#### | | ??????????????????????????????????????????????# | | ??????????????????????????????????????????????# | | ??????????????????????????????????????????????# | | ??????????????????????????????????????????????# # | | ??????????????????????????????????????????????# # | | ??????????????????????????????????????????????# # | | ??????????????????????????????????????????????# # | | ??????????????????????????????????????????????# # | | ??????????????????????????????????????????????# # | | ????????????????????????????????????###???????# # | | ???????????????????????????????######"######### # | | ???????????????????????????????# # | | ???????????????????????????????# " | | ???????????????????????????????# ####""##### #### | | ???????????????????????????????# #??## #???# #??? | | ??????g???????????????g????????# #???# #???# #??? | | ???????????????????????????????# #???# #???# #??? | | ???????????????????????????????# #??? ???# #??? | | ?????????????????????????####### #???# #???# #??? | | ?????????????????????????#CC%=## #???# #???# #??? | | ?????????????????######### C=%## ##??# #???? ???? | | ?????????? !@![%g #??? ?????#???? | | ?????????? !h gssss #??? ?????????? | | ?????????? #???#?????????? | | ???????????########## ## ## ^#?????????????? | | ????????????????????# ?#h ## ^^#?????????????? | | ??????????????????? gg ? ????????????? | | ??????????????????# g #???????????? | | ??????????????????# " #???????????? | | ??????????????????# " #???????????? | | ??????????????????### "# g ## #?#???????????? | | ????????????????????# ## #? #?????????????? | | ???????????????????? ? ? ?????????????? | | ????????????????????? ? g ? ?????????????? | | ?????????????????????? ? #?????????????? | | ?????????????????????????# #?####?????????????? | | ?????????????????????????? ???????????????????? | | ?????????????????????????????????????????????????? | | ?????????????????????????????????????????????????? | | ?????????????????????????????????????????????????? | | ?????????????????????????????????????????????????? | | ?????????????????????????????????????????????????? | | ?????????????????????????????????????????????????? | | ?????????????????????????????????????????????????? | | ?????????????????????????????????????????????????? | | ?????????????????????????????????????????????????? | +----------------------------------------------------+ Best States ------------- Heat Dissipation 40 Energy Generation 21 Energy Capacity 325 Matter Stores 300 Matter Capacity 300 Sight Range 16 Robot Scan Range 16 Terrain Scan Range 20 Terrain Scan Density 210 Armor Coverage 1200 Resistance: EM 90 Weapon Cycling 15 Evasion (%) 44 Targeting Accuracy 5 Armor Integrity Analysis 50 Recoil Reduction 3 Salvage Targeting 4 Offensive Hacking 20 Item Schematics ----------------- None Robot Schematics ------------------ None Fabricated ------------ Nothing Alien Tech Used ----------------- None Achievements -------------- None Challenges ------------ None Game ------ Seed SurveybotControlSabre Manual? 0 Play Time 01:22:16 Cumulative 189.5 hours Start 2020.08.29 @ 21:40:10 End 2020.08.29 @ 22:59:08 Sessions 1 Manual Loads 0 Difficulty Rogue Special Mode None Game No. 212 Rogue 212 Adventurer 0 Explorer 0 Win Type - Total 7 Types 5/0/2/0/0/0/0 Lore% 74 Gallery% 82 Achievement% 60 Wizard Run 0 Options --------- ASCII 0 Keyboard 1 Movement Numpad Keybinds 0 Fullscreen 1 Font 20/SmallcapsGlow Map View 66x50 Tactical HUD 1 Map Filters NONE Filters NONE Steam 1 RUN: 3e73a6b5-8562-4da3-87f9-9640e734e71d